Cogmind - Beta 13 @@@ ROGUE MODE // 2024.04.01 @ 00:10:45 Player: Sixten Result: Destroyed by Z8-VFP(R) with Subdweller Machine Gun Performance ------------- Evolutions (0) 0 Regions Visited (1) 200 Robots Destroyed (5) 25 Value Destroyed (98) 98 Prototype IDs (3) 60 Alien Tech Used (0) 0 Bonus (0) 0 TOTAL SCORE: 383 Bonus ------- None Cogmind --------- Core Integrity 0/250 Matter 286/300 Energy 125/125 System Corruption 1% Temperature Cool (0) Movement Walking (260) Ox2 Location -10/Materials Parts ------- > --- POWER (1) -------- Light Ion Engine > --- PROPULSION (2) --- Aluminum Leg > --- UTILITY (2) ------ Large Storage Unit > --- WEAPON (2) ------- (None) > --- INVENTORY (15) --- Ion Engine Light Ion Engine Light Ion Engine Aluminum Leg Small Laser Assault Rifle Light Assault Rifle Light Assault Rifle Grenade Launcher Peak State ------------ > --- POWER ------------ Light Ion Engine > --- PROPULSION ------- Aluminum Leg Aluminum Leg > --- UTILITY ---------- Large Storage Unit > --- WEAPON ----------- EM Pulse Gun Assault Rifle > --- INVENTORY -------- Ion Engine Light Ion Engine Light Ion Engine Aluminum Leg Aluminum Leg Small Laser Assault Rifle Light Assault Rifle Light Assault Rifle Grenade Launcher [Rating: 7] Favorites ----------- Power Light Ion Engine Engine Light Ion Engine Propulsion Aluminum Leg Leg Aluminum Leg Utility Large Storage Unit Storage Large Storage Unit Weapon EM Pulse Gun Energy Gun EM Pulse Gun Ballistic Gun Assault Rifle Build | -11 -10 ------- Run | Yrd Mat Slots Evolved . | . . Power . | . . Propulsion . | . . Utility . | . . Weapon . | . . Parts Attached 8 | 6 2 Power 1 | 1 . Engine 1 | 1 . Core . | . . Reactor . | . . Propulsion 3 | 2 1 Treads . | . . Leg 3 | 2 1 Wheel . | . . Hover . | . . Flight . | . . Utility 1 | . 1 Device . | . . Storage 1 | . 1 Processor . | . . Hackware . | . . Protection . | . . Artifact . | . . Weapon 3 | 3 . Energy Gun 2 | 2 . Energy Cannon . | . . Ballistic Gun 1 | 1 . Ballistic Cannon . | . . Launcher . | . . Special Weapon . | . . Impact Weapon . | . . Slashing Weapon . | . . Piercing Weapon . | . . Special Melee Weapon . | . . Unidentified Prototypes . | . . Parts Lost 4 | . 4 Power . | . . Propulsion 2 | . 2 Utility . | . . Weapon 2 | . 2 Highest Loss Streak 4 | . 4 To Critical Strikes . | . . Average Slot Usage (%) 80 | . 80 Engine 14 | . 14 Leg 26 | . 26 Storage 13 | . 13 Energy Gun 12 | . 12 Ballistic Gun 12 | . 12 Naked Turns . | . . Heaviest Build 27 | 7 27 Greatest Support 20 | 20 20 Greatest Overweight (x) 2 | 2 2 Average Overweight (x) . | . 1 Largest Inventory Capacity 15 | 5 15 Average Capacity 13 | 5 14 Most Carried 10 | 3 10 Average Carried 6 | 1 6 Final Capacity 15 | 5 15 Final Carried 9 | 2 9 Class Distribution -------------------- 100% | Mutant Dominant Class ---------------- Mutant | -10/Materials Resources | -11 -10 ----------- Run | Yrd Mat Matter Collected 304 | 237 67 Remotely . | . . Salvage Created 134 | . 134 Parts 10 | . 10 Haulers Intercepted . | . . Recyclers Shooed . | . . Parts Field Recycled . | . . Retrieved Matter . | . . Parts Self-Destructed . | . . Prevented . | . . Kills | -11 -10 ------- Run | Yrd Mat Combat Hostiles Destroyed 5 | . 5 Guns 5 | . 5 Classes Destroyed 2 | . 2 Swarmer 3 | . 3 Grunt 2 | . 2 Best Kill Streak 3 | . 3 Combat Bots Only 3 | . 3 Max Kills in Single Turn 1 | . 1 Gunslinging . | . . Exploded . | . . Melee . | . . Uniques/NPCs Destroyed . | . . Combat | -11 -10 -------- Run | Yrd Mat Hostile Shots Fired 53 | . 53 Missed 10 | . 10 Damage Taken 746 | . 746 Core 274 | . 274 Absorbed by Shields . | . . Core Remaining (%) 100 | 100 . Volleys Fired 21 | . 21 Largest 2 | . 2 Hottest 60 | . 60 Shots Fired 40 | . 40 Gun 40 | . 40 Cannon . | . . Launcher . | . . Special . | . . Kinetic 19 | . 19 Thermal . | . . Explosive . | . . Electromagnetic 21 | . 21 Robot Hit Streak 6 | . 6 Robot Miss Streak 3 | . 3 Penetration Max . | . . Secondary Targets . | . . Shots Hit Robots 23 | . 23 Core Hits 8 | . 8 Critical Kills . | . . Critical Parts Destroyed . | . . Critical Strikes 1 | . 1 Corrupt 1 | . 1 Melee Attacks . | . . Impact . | . . Slashing . | . . Piercing . | . . Sneak Attacks . | . . Combat Hostiles . | . . Follow-up Attacks . | . . Damage Inflicted 290 | . 290 Guns 282 | . 282 Cannons . | . . Explosions . | . . Melee . | . . Ramming 8 | . 8 Kinetic 117 | . 117 Thermal . | . . Explosive . | . . Electromagnetic 165 | . 165 Impact . | . . Slashing . | . . Piercing . | . . Highest Corruption 1 | . 1 Average Corruption 1 | . 1 Corruption Purged . | . . Corruption Blocked . | . . Effects 5 | . 5 Message Errors 1 | . 1 Matter Fused 1 | . 1 Heat Flow Errors 1 | . 1 Data Loss (minor) 2 | . 2 Overload Shots . | . . Overflow Damage . | . . Projectiles . | . . Explosions . | . . Melee . | . . Knockbacks . | . . Impact . | . . Kinetic . | . . Secondary . | . . Self-Inflicted Damage . | . . Shots . | . . Rammed . | . . Targets Rammed 1 | . 1 Kicked 1 | . 1 Crushed . | . . Highest Temperature 254 | . 254 Average Temperature 60 | . 60 Received Heat Transfer 195 | . 195 Siege Activations . | . . Robots Corrupted . | . . Combat Hostiles . | . . Parts Fried . | . . Impact Corruptions . | . . Robots Melted . | . . Combat Hostiles . | . . Parts Melted . | . . Heat Transferred . | . . Parts Sabotaged . | . . Parts Stolen . | . . Parts Stripped . | . . Power Chain Reactions . | . . Alert | -11 -10 ------- Run | Yrd Mat Peak Influence 115 | . 115 Initial . | . . Average 47 | . 54 Maximum Alert Level . | . . Low Security (%) 100 | 100 100 Level 1 . | . . Level 2 . | . . Level 3 . | . . Level 4 . | . . Level 5 . | . . High Security . | . . Max Security . | . . Squads Dispatched 1 | . 1 Investigation 1 | . 1 Extermination . | . . Reinforcement . | . . Assault . | . . Garrison . | . . Intercept . | . . Searches Triggered . | . . Construction Impeded . | . . Haulers Reinforced . | . . Active Scanning Responses . | . . Cargo Convoy Interrupts . | . . Stealth | -11 -10 --------- Run | Yrd Mat Distress Signals 1 | . 1 Communications Jammed . | . . Distress Signals . | . . Times Spotted 10 | . 10 Peak Tracking Total 4 | . 4 Tactical Retreats 1 | . 1 Traps | -11 -10 ------- Run | Yrd Mat Traps Triggered 1 | . 1 Indirectly . | . . Trap Hack Attempts . | . . Triggered . | . . Disarmed . | . . Reprogrammed . | . . Reused . | . . Traps Extracted . | . . Installed . | . . Triggered . | . . Machines | -11 -10 ---------- Run | Yrd Mat Machines Disabled . | . . Max in Single Turn . | . . Machines Repaired . | . . Machines Dismantled . | . . Machines Sabotaged . | . . Overloaded Fab Kills . | . . Hacking | -11 -10 --------- Run | Yrd Mat Machines Accessed 2 | . 2 Terminals 2 | . 2 Fabricators . | . . Repair Stations . | . . Recycling Units . | . . Scanalyzers . | . . Garrison Access . | . . Total Hacks 4 | . 4 Successful 3 | . 3 Failed 1 | . 1 Catastrophic . | . . Database Lockouts . | . . Manual . | . . Terminals 4 | . 4 Fabricators . | . . Repair Stations . | . . Recycling Units . | . . Scanalyzers . | . . Garrison Access . | . . Terminal Hacks 3 | . 3 Prototype ID Bank 1 | . 1 Investigation Status 1 | . 1 Zone Layout 1 | . 1 Fabricator Hacks . | . . Repair Station Hacks . | . . Recycling Unit Hacks . | . . Scanalyzer . | . . Garrison Access Hacks . | . . Unauthorized Hacks . | . . Terminals . | . . Fabricators . | . . Repair Stations . | . . Recycling Units . | . . Scanalyzers . | . . Garrison Access . | . . Data Cores Recovered . | . . Used . | . . Hacking Detections 1 | . 1 Full Trace Events 1 | . 1 Feedback Events . | . . Feedback Blocked . | . . Robot Schematics Acquired . | . . Robots Built . | . . Authchips . | . . Time . | . . Total Robot Build Rating . | . . Part Schematics Acquired . | . . Parts Built . | . . Authchips . | . . Time . | . . Total Part Build Rating . | . . Parts Repaired . | . . Time . | . . Parts Recycled . | . . Recycled Matter . | . . Retrieved Matter . | . . Retrieved Components . | . . Parts Scanalyzed . | . . Part Schematics Acquired . | . . Parts Damaged . | . . Bothacking | -11 -10 ------------ Run | Yrd Mat Used RIF Installer . | . . Robots Hacked . | . . Non-combat . | . . Combat . | . . Robot Hacks Applied . | . . Relay Couplers Released . | . . Fabnet Peak Effective % . | . . Robots Rewired . | . . Allies Hacked . | . . Hacks Repelled . | . . Allies | -11 -10 -------- Run | Yrd Mat Total Allies . | . . Largest Group . | . . Highest-Rated Group . | . . Highest-Rated Ally . | . . Total Orders . | . . Ally Attacks . | . . Total Damage . | . . Kills . | . . Allies Corrupted . | . . Allies Melted . | . . Intel | -11 -10 ------- Run | Yrd Mat Robot Analysis Total . | . . Derelict Logs Recovered . | . . Drone Launches . | . . Drone Recoveries . | . . Exploration | -11 -10 ------------- Run | Yrd Mat Turns Passed 618 | 75 543 Spaces Moved 300 | 61 239 Core 26 | 26 . Treads . | . . Legs 274 | 35 239 Wheels . | . . Hover . | . . Flight . | . . Fastest Speed 50 | 50 120 Average Speed 176 | 105 194 Slowest Speed 260 | 150 260 Overloaded Moves . | . . Propulsion Burnouts . | . . Robots Hopped . | . . Cave-ins Triggered . | . . Exploration Rate (%) 18 | 5 31 Regions Visited 1 Branch Regions . Pre-discovered Areas . | . . Known Exits Taken . | . . Unknown Exits Taken 1 | 1 . Scrap Searched . | . . Spaces Dug . | . . Terrain Destroyed . | . . Melee . | . . Projectile . | . . AOE . | . . Terrain Rammed . | . . Walls Destroyed . | . . Machines Disabled . | . . Actions | -11 -10 --------- Run | Yrd Mat Total 345 | 69 276 Wait 5 | . 5 Move 299 | 60 239 Hop . | . . Pick Up 11 | 3 8 Fast Attach 5 | 4 1 Attach 2 | 1 1 Detach . | . . Swap 1 | 1 . Drop . | . . Fire 21 | . 21 Melee . | . . Ram . | . . Kick 1 | . 1 Crush . | . . Escape Stasis . | . . Rewire . | . . Trap . | . . Miscellaneous . | . . Route ------- -11/Scrapyard -10/Materials History --------- Turn | Location | Event 13 | -11/Scrapyard | Discovered new exit (range 15) 76 | -11/Scrapyard | Entered Materials 312 | -10/Materials | Build established: Mutant 500 | -10/Materials | Derelicts attacked the area 564 | -10/Materials | Core integrity fell below 50% 577 | -10/Materials | Core integrity fell below 20% 594 | -10/Materials | Lost 4 parts (2n2w) 619 | -10/Materials | Destroyed by Z8-VFP(R) with Subdweller Machine Gun Last Messages --------------- 00439_ K-01 Serf collects debris. 00451_ Acquired Grenade Launcher. 00459_ System corrupted: Component data lost. 00475_ Connecting with Terminal... >>Enumerate(Investigations) Retrieving latest reported positions... No active investigation squads found. 00489_ System corrupted: Component data lost. 00500_ ALERT: Derelict incursion detected, rerouting patrols to target area. 00538_ G-34 Mercenary destroyed. 00549_ Aluminum Leg destroyed. 00555_ Processing Tank disabled. 00559_ Assault Rifle destroyed. 00561_ G-47 Trooper misfires. 00563_ G-47 Trooper destroyed. 00563_ EM Pulse Gun destroyed. 00563_ Aluminum Leg destroyed. 00568_ System corrupted: Heat flow error (+261). 00571_ R-06 Scavenger destroyed. Map ----- +----------------------------------------------------+ | ??????????????????????????????????????##### ! | | ??????????????????????????????????????# | | ??????????????????????????????????????# | | ??????????????????????????????????????# | | ??????????????????????????????????????# | | ??????????????????????????????????????# ! | | ??????????????????????????????????????# ### | | ??????????????????????????????????????# #?? | | ??????????????????????????????????###?# #?? | | ????????????????????????????????? # # #?? | | ??????????????????? ????????????? # # #?? | | ?????????????????? ????????????? # #?? | | ????????????????? ?????????????## # #?? | | ?????????????????== ??????????????#### ### | | ?????????????????? ????????????????## ## | | ?????????????????? ######+########## # | | ??????????????????? # | | ???????????????????? + | | ????????????????????? # | | ?????????????????????# ############# # | | ?????????????#####???# #??????###??####### | | ?????????????# ??# #????### ########?# | | ?????????????#""" ?## ##??## #### | | ?????????????#""" # ####;; """" | | ?????????????#""" # | | ?????????????#""" @ % | | ?????????????#""" # R R= =!% | | ?????????????# # #####;; "*# | | ?????????????# ?#######???# ! | | ?????????????######???????????#" " | | ????????????????????????????? " """ | | ???????????????????????????? # | " """ | | ??????????????????????????? ######"## """ | | ??????????????????????????## ?? ## """ | | ???????????????????????????# ?????? ## | | ???????????????????????????# ?????? ## | | ???????????????????????????# ?????? ## | | ???????????????????????????# ?????? ## | | ???????????????????????????# ??????? ## | | ???????????????????????????# ?????????# "T" | | ????????????????????????????##?????????# """ | | ???????????????????????????????????????###### | | ????????????????????????????????????????????? | | ????????????????????????????????????????????? | | ????????????????????????????????????????????? | | ????????????????????????????????????????????? | | ????????????????????????????????????????????? | | ????????????????????????????????????????????? | | ????????????????????????????????????????????? | | ????????????????????????????????????????????? | +----------------------------------------------------+ Best States ------------- Heat Dissipation 25 Energy Generation 10 Energy Capacity 125 Matter Stores 300 Matter Capacity 300 Sight Range 16 Terrain Scan Density 10 Evasion (%) 55 Item Schematics ----------------- None Robot Schematics ------------------ None Fabricated ------------ Nothing Alien Tech Used ----------------- None Achievements -------------- None Challenges ------------ None Game ------ Seed ScatterTripodMaul Manual? 0 Play Time 00:04:51 Cumulative 6.8 hours Start 2024.04.01 @ 00:05:57 End 2024.04.01 @ 00:10:45 Sessions 1 Manual Loads 0 Difficulty Rogue Special Mode None Game No. 34 Rogue 34 Adventurer 0 Explorer 0 Win Type - Total 0 Types 0/0/0/0/0/0/0/0/0 Lore% 8 Gallery% 9 Achievement% 10 Wizard Run 0 Options --------- Layout 1 ASCII 0 Keyboard 1 Movement Arrows Keybinds 0 Fullscreen 1 Font 24/Smallcaps Map View 50x35 Zoom Use 0% Tactical HUD 1 Map Filters NONE Filters NONE Steam 1 RUN: 5ff1af9a-54a3-4a82-aa13-5b7f9c540f96